fUST/lending_fUST_20240518
["ID","MTS","AMOUNT","RATE_DAILY","PERIOD"]
[327357696,1716015041057,-500.0,0.00016438,2]
[327357698,1716015041067,-1112.732129,0.00016438,2]
[327357700,1716015041077,-151.0,0.00016438,2]
[327357703,1716015041086,-151.0,0.00016438,2]
[327357704,1716015041095,-500.0,0.00016438,2]
[327357707,1716015041105,-151.0,0.00016438,2]
[327357709,1716015041114,-506.53639279,0.00016438,2]
[327357710,1716015041123,-500.0,0.00016438,2]
[327357712,1716015041132,-500.0,0.00016438,2]
[327357714,1716015041141,-500.0,0.00016438,2]
[327357715,1716015041151,-500.0,0.00016438,2]
[327357716,1716015041160,-1221.707451,0.00016438,2]
[327357717,1716015041170,-1221.707451,0.00016438,2]
[327357718,1716015041180,-653.87,0.00016438,2]
[327357720,1716015041190,-585.22,0.00016438,2]
[327357722,1716015041199,-500.0,0.00016438,2]
[327357724,1716015041207,-500.0,0.00016438,2]
[327357726,1716015041216,-510.37824725,0.00016438,2]
[327357728,1716015041226,-1043.95,0.00016438,2]
[327357730,1716015041235,-708.47,0.00016438,2]
[327357732,1716015041245,-708.47,0.00016438,2]
[327357734,1716015041255,-708.47,0.00016438,2]
[327357736,1716015041264,-708.47,0.00016438,2]
[327357738,1716015041273,-708.47,0.00016438,2]
[327357740,1716015041282,-500.0,0.00016438,2]
[327357741,1716015041291,-539.838965,0.00016438,2]
[327357743,1716015041300,-5009.77414219,0.00016438,2]
[327357810,1716015045172,-642.88836284,0.00016419,2]
[327357832,1716015046080,-359.22562327,0.00016338,2]
[327357871,1716015353156,500.0,0.00016438,4]
[327357872,1716015945176,-335.074259,0.00014644,2]
[327357873,1716015945197,-189.5809831,0.00014692,2]
[327357874,1716015945219,-250.0,0.00014705,2]
[327357875,1716015945238,-505.28802515,0.00014792,2]
[327357876,1716015945256,-92.16546801,0.00015,2]
[327357877,1716016037381,5000.0,0.00023,30]
[327357878,1716016040094,-167.537129,0.00014368,2]
[327357879,1716016040114,-500.40720709,0.000149,2]
[327357880,1716016044106,-303.12889109,0.000149,2]
[327357881,1716016044126,-2107.5414282,0.00015,2]
[327357882,1716016044146,-942.53705457,0.00015,2]
[327357883,1716016044169,-1226.08472262,0.00015,2]
[327357884,1716016045225,-2473.48476757,0.00015,2]
[327357885,1716016045246,-1149.07076386,0.00015327,2]
[327357886,1716016045267,-155.16954056,0.00015427,2]
[327357887,1716016045287,-154.96083737,0.00015428,2]
[327357888,1716016045307,-286.42527182,0.00015428,2]
[327357889,1716016045327,-335.66171947,0.00015428,2]
[327357890,1716016045347,-2094.90913699,0.00015428,2]
[327357893,1716016110160,5390.34,9e-05,2]
[327357941,1716016232861,-1083.33243758,0.00014999,2]
[327357942,1716016232874,-9425.4227285,0.00014999,2]
[327357943,1716016232884,-282.06289032,0.00015,2]
[327357944,1716016232894,-2400.65057528,0.00015,2]
[327357945,1716016232905,-3699.56949019,0.00015,2]
[327357946,1716016232915,-80000.0,0.00015,2]
[327357947,1716016232924,-301.95911464,0.00015325,2]
[327357948,1716016232934,-3986.45738273,0.00015325,2]
[327357949,1716016232943,-1149.07076386,0.00015326,2]
[327357950,1716016232953,-14078.57387391,0.00015326,2]
[327357951,1716016232962,-850.37158656,0.00015426,2]
[327357952,1716016232972,-492.86440031,0.00015426,2]
[327357953,1716016232981,-581.32291268,0.00015426,2]
[327357954,1716016232991,-379.8280133,0.00015426,2]
[327357955,1716016233000,-298.6473869,0.00015427,2]
[327357956,1716016233010,-285.71224732,0.00015428,2]
[327357957,1716016233019,-477.11995465,0.00015429,2]
[327357958,1716016233028,-4868.0192888,0.00015429,2]
[327357959,1716016233038,-153.0,0.00015678,2]
[327357960,1716016233047,-5995.52437208,0.00016,2]
[327357961,1716016233056,-7967.64444353,0.00016,2]
[327357962,1716016233065,-1101.24786691,0.00016,2]
[327357963,1716016233075,-154.428656,0.00016,2]
[327357964,1716016233084,-302.99943183,0.00016338,2]
[327357965,1716016233093,-596.39383296,0.00016338,2]
[327357966,1716016233102,-4222.10020806,0.00016347,2]
[327357967,1716016233112,-633.73246104,0.00016385,2]
[327357968,1716016233122,-153.0,0.000164,2]
[327357969,1716016233133,-308.8481177,0.000164,2]
[327357970,1716016233142,-491.35425183,0.00016435,2]
[327358021,1716016238164,-1432.05061739,0.00015324,2]
[327358023,1716016238176,-675.49081081,0.00015324,2]
[327358026,1716016238189,-323.5,0.00016154,3]
[327358028,1716016238198,-323.5,0.00016154,2]
[327358030,1716016238207,-323.5,0.00016404,2]
[327358032,1716016238217,-2304.57399171,0.00016435,2]
[327358034,1716016238226,-2277.21222039,0.00016436,2]
[327358036,1716016238235,-212.90442467,0.00016436,2]
[327358038,1716016238245,-164.94288442,0.00016436,2]
[327358040,1716016238254,-266.32414805,0.00016436,2]
[327358042,1716016238263,-186.9599374,0.00016436,2]
[327358043,1716016238273,-155.0907129,0.00016436,2]
[327358046,1716016238287,-0.46975565,0.00016436,2]
[327358049,1716016238306,-154.35993169,0.00016436,2]
[327358061,1716016238448,-260.77302542,0.00016436,2]
[327358062,1716016238458,-154.91070564,0.00016436,2]
[327358064,1716016238468,-155.28703932,0.00016436,2]
[327358066,1716016238477,-189.0391359,0.00016436,2]
[327358067,1716016238487,-154.98197978,0.00016436,2]
[327358069,1716016238496,-417.06273246,0.00016436,2]
[327358071,1716016238506,-4136.06018776,0.00016438,3]
[327358073,1716016238515,-14163.17832235,0.00016438,3]
[327358074,1716016238525,-479.95791714,0.00016438,2]
[327358076,1716016238534,-500.0,0.00016438,2]
[327358077,1716016238544,-500.0,0.00016438,2]
[327358079,1716016238553,-361.19658247,0.00016438,2]
[327358081,1716016238562,-500.0,0.00016438,2]
[327358082,1716016238570,-501.7695976,0.00016438,2]
[327358084,1716016238580,-501.49,0.00016438,2]
[327358086,1716016238589,-500.0,0.00016438,2]
[327358087,1716016238599,-500.0,0.00016438,2]
[327358089,1716016238608,-500.0,0.00016438,2]
[327358091,1716016238617,-510.37824725,0.00016438,2]
[327358092,1716016238626,-708.47,0.00016438,2]
[327358094,1716016238636,-708.47,0.00016438,2]
[327358096,1716016238645,-708.47,0.00016438,2]
[327358097,1716016238654,-708.47,0.00016438,2]
[327358099,1716016238663,-708.47,0.00016438,2]
[327358101,1716016238672,-708.47,0.00016438,2]
[327358102,1716016238681,-466.5115958,0.00016438,2]
[327358104,1716016238692,-500.0,0.00016438,2]
[327358106,1716016238701,-500.0,0.00016438,2]
[327358108,1716016238710,-500.0,0.00016438,2]
[327358109,1716016238720,-501.33650797,0.00016438,2]
[327358111,1716016238729,-500.0,0.00016438,2]
[327358113,1716016238738,-500.0,0.00016438,2]
[327358115,1716016238748,-500.0,0.00016438,2]
[327358116,1716016238757,-500.0,0.00016438,2]
[327358118,1716016238766,-500.0,0.00016438,2]
[327358120,1716016238775,-500.0,0.00016438,2]
[327358121,1716016238784,-500.0,0.00016438,2]
[327358123,1716016238794,-500.0,0.00016438,2]
[327358125,1716016238803,-280.42141025,0.00016438,2]
[327358127,1716016238812,-155.85370913,0.00016438,2]
[327358128,1716016238822,-505.69511588,0.00016438,2]
[327358130,1716016238831,-251.53226669,0.00016438,2]
[327358132,1716016238840,-500.0,0.00016438,2]
[327358134,1716016238849,-544.23,0.00016438,2]
[327358135,1716016238858,-544.23,0.00016438,2]
[327358137,1716016238867,-500.0,0.00016438,2]
[327358139,1716016238876,-544.23,0.00016438,2]
[327358141,1716016238885,-544.23,0.00016438,2]
[327358143,1716016238894,-544.23,0.00016438,2]
[327358144,1716016238903,-500.0,0.00016438,2]
[327358146,1716016238912,-500.0,0.00016438,2]
[327358148,1716016238923,-500.0,0.00016438,2]
[327358149,1716016238931,-179.30623564,0.00016438,2]
[327358151,1716016238940,-500.0,0.00016438,2]
[327358153,1716016238949,-634.22939055,0.00016438,2]
[327358155,1716016238959,-500.0,0.00016438,2]
[327358156,1716016238967,-500.0,0.00016438,2]
[327358158,1716016238977,-500.0,0.00016438,2]
[327358160,1716016238986,-500.0,0.00016438,2]
[327358162,1716016238995,-500.0,0.00016438,2]
[327358163,1716016239004,-500.0,0.00016438,2]
[327358165,1716016239013,-337.78063961,0.00016438,2]
[327358167,1716016239022,-500.0,0.00016438,2]
[327358168,1716016239031,-500.0,0.00016438,2]
[327358170,1716016239040,-500.0,0.00016438,2]
[327358172,1716016239050,-500.0,0.00016438,2]
[327358174,1716016239058,-500.0,0.00016438,2]
[327358175,1716016239068,-500.0,0.00016438,2]
[327358177,1716016239077,-500.0,0.00016438,2]
[327358179,1716016239087,-217.61196381,0.00016438,2]
[327358181,1716016239096,-500.0,0.00016438,2]
[327358182,1716016239105,-500.0,0.00016438,2]
[327358184,1716016239114,-500.0,0.00016438,2]
[327358186,1716016239123,-2956.29,0.00016438,2]
[327358188,1716016239133,-500.0,0.00016438,2]
[327358189,1716016239142,-500.0,0.00016438,2]
[327358191,1716016239151,-500.0,0.00016438,2]
[327358193,1716016239160,-310.82892052,0.00016438,2]
[327358195,1716016239169,-421.90092471,0.00016438,2]
[327358196,1716016239179,-500.0,0.00016438,2]
[327358198,1716016239188,-500.0,0.00016438,2]
[327358200,1716016239198,-500.0,0.00016438,2]
[327358202,1716016239207,-500.0,0.00016438,2]
[327358203,1716016239217,-500.0,0.00016438,2]
[327358205,1716016239227,-655.64,0.00016438,2]
[327358207,1716016239236,-655.64,0.00016438,2]
[327358208,1716016239247,-655.64,0.00016438,2]
[327358210,1716016239256,-655.64,0.00016438,2]
[327358212,1716016239266,-655.64,0.00016438,2]
[327358214,1716016239276,-500.0,0.00016438,2]
[327358216,1716016239289,-653.87,0.00016438,2]
[327358217,1716016239299,-348.2,0.00016438,2]
[327358218,1716016239308,-4188.03,0.00016438,2]
[327358219,1716016239318,-5058.19,0.00016438,2]
[327358220,1716016239327,-2310.72,0.00016438,2]
[327358221,1716016239337,-500.0,0.00016438,2]
[327358222,1716016239346,-511.70366749,0.00016438,2]
[327358223,1716016239355,-500.0,0.00016438,2]
[327358224,1716016239365,-440.91002273,0.00016438,2]
[327358225,1716016239374,-500.0,0.00016438,2]
[327358226,1716016239384,-500.0,0.00016438,2]
[327358227,1716016239393,-500.0,0.00016438,2]
[327358228,1716016239402,-411.52,0.00016438,2]
[327358229,1716016239411,-500.0,0.00016438,2]
[327358230,1716016239421,-500.0,0.00016438,2]
[327358231,1716016239431,-500.0,0.00016438,2]
[327358233,1716016239440,-569.16132028,0.00016438,2]
[327358234,1716016239450,-5656.52,0.00016438,2]
[327358236,1716016239458,-500.0,0.00016438,2]
[327358238,1716016239468,-3480.51,0.00016438,2]
[327358240,1716016239477,-500.0,0.00016438,2]
[327358241,1716016239486,-500.0,0.00016438,2]
[327358244,1716016239495,-504.26717806,0.00016438,2]
[327358245,1716016239504,-503.90597654,0.00016438,2]
[327358247,1716016239514,-24540.07,0.00016438,2]
[327358249,1716016239523,-568.43379303,0.00016438,2]
[327358251,1716016239532,-500.0,0.00016438,2]
[327358253,1716016239542,-500.0,0.00016438,2]
[327358255,1716016239552,-500.0,0.00016438,2]
[327358257,1716016239561,-500.0,0.00016438,2]
[327358259,1716016239571,-277.09716985,0.00016438,2]
[327358261,1716016239580,-377.26946596,0.00016438,2]
[327358263,1716016239589,-565.22766407,0.00016438,2]
[327358265,1716016239599,-585.22,0.00016438,2]
[327358267,1716016239610,-500.0,0.00016438,2]
[327358269,1716016239619,-1114.36,0.00016438,2]
[327358271,1716016239628,-500.0,0.00016438,2]
[327358274,1716016239638,-500.0,0.00016438,2]
[327358276,1716016239647,-500.0,0.00016438,2]
[327358278,1716016239657,-506.53639279,0.00016438,2]
[327358279,1716016239666,-500.0,0.00016438,2]
[327358281,1716016239675,-500.0,0.00016438,2]
[327358284,1716016239684,-500.0,0.00016438,2]
[327358287,1716016239695,-500.0,0.00016438,2]
[327358290,1716016239704,-500.0,0.00016438,2]
[327358293,1716016239713,-713.21,0.00016438,2]
[327358296,1716016239723,-366.46350252,0.00016438,2]
[327358299,1716016239732,-500.0,0.00016438,2]
[327358302,1716016239742,-443.50746496,0.00016438,2]
[327358305,1716016239752,-500.0,0.00016438,2]
[327358308,1716016239761,-500.0,0.00016438,2]
[327358311,1716016239770,-1043.95,0.00016438,2]
[327358314,1716016239779,-302.99943181,0.00016475,2]
[327358317,1716016239788,-708.47,0.00016492,2]
[327358320,1716016239798,-655.64,0.00016499,2]
[327358323,1716016239807,-12703.0,0.000165,2]
[327358326,1716016239816,-239.60631677,0.000165,2]
[327358329,1716016239826,-200.0,0.000165,2]
[327358332,1716016239835,-544.23,0.00016537,2]
[327358335,1716016239844,-150.161,0.00016537,2]
[327358339,1716016239853,-150.0,0.00016537,2]
[327358342,1716016239863,-495.0,0.00016537,2]
[327358345,1716016239872,-150.804,0.00016537,2]
[327358348,1716016239881,-708.47,0.00016611,2]
[327358351,1716016239890,-708.47,0.00016611,2]
[327358354,1716016239899,-544.23,0.00016611,2]
[327358357,1716016239908,-544.23,0.00016611,2]
[327358360,1716016239918,-655.64,0.00016611,2]
[327358363,1716016239928,-655.64,0.00016611,2]
[327358366,1716016239937,-229.200561,0.00016611,2]
[327358369,1716016239947,-229.200561,0.00016611,2]
[327358372,1716016239957,-151.0,0.00016611,2]
[327358376,1716016239966,-151.0,0.00016612,2]
[327358378,1716016239975,-169.073688,0.00016612,2]
[327358381,1716016239984,-169.073688,0.00016612,2]
[327358384,1716016239994,-151.0,0.00016612,2]
[327358388,1716016240004,-151.0,0.00016612,2]
[327358391,1716016240014,-244.007865,0.00016612,2]
[327358393,1716016240023,-244.007865,0.00016612,2]
[327358395,1716016240033,-302.99943181,0.00016612,2]
[327358398,1716016240042,-151.0,0.00016612,2]
[327358402,1716016240051,-151.0,0.00016612,2]
[327358403,1716016240060,-151.0,0.00016612,2]
[327358407,1716016240070,-151.0,0.00016612,2]
[327358410,1716016240079,-151.0,0.00016612,2]
[327358413,1716016240088,-151.0,0.00016612,2]
[327358415,1716016240097,-155.041217,0.00016612,2]
[327358418,1716016240107,-223.188601,0.00016612,2]
[327358421,1716016240116,-223.188601,0.00016612,2]
[327358423,1716016240125,-223.188601,0.00016612,2]
[327358426,1716016240134,-223.188601,0.00016612,2]
[327358428,1716016240143,-229.200561,0.00016612,2]
[327358431,1716016240152,-229.200561,0.00016612,2]
[327358433,1716016240162,-151.0,0.00016612,2]
[327358436,1716016240171,-151.0,0.00016612,2]
[327358438,1716016240180,-151.0,0.00016612,2]
[327358441,1716016240189,-151.0,0.00016612,2]
[327358442,1716016240199,-151.0,0.00016612,2]
[327358445,1716016240208,-1112.732129,0.00016612,2]
[327358447,1716016240217,-1112.732129,0.00016612,2]
[327358450,1716016240227,-1112.732129,0.00016612,2]
[327358452,1716016240236,-1112.732129,0.00016612,2]
[327358454,1716016240245,-1221.707451,0.00016612,2]
[327358456,1716016240255,-1221.707451,0.00016612,2]
[327358458,1716016240264,-1221.707451,0.00016612,2]
[327358460,1716016240273,-1221.707451,0.00016612,2]
[327358462,1716016240289,-151.0,0.00016612,2]
[327358464,1716016240298,-151.0,0.00016612,2]
[327358466,1716016240307,-151.0,0.00016612,2]
[327358468,1716016240316,-151.0,0.00016612,2]
[327358470,1716016240326,-539.838965,0.00016612,2]
[327358472,1716016240335,-539.838965,0.00016612,2]
[327358474,1716016240344,-539.838965,0.00016612,2]
[327358476,1716016240353,-539.838965,0.00016612,2]
[327358478,1716016240364,-2724.917248,0.00016612,2]
[327358480,1716016240373,-2724.917248,0.00016612,2]
[327358482,1716016240384,-2724.917248,0.00016612,2]
[327358484,1716016240393,-2724.917248,0.00016612,2]
[327358486,1716016240402,-151.0,0.00016612,2]
[327358488,1716016240412,-151.0,0.00016612,2]
[327358489,1716016240421,-60615.24302172,0.00016612,2]
[327358491,1716016240431,-323.5,0.00016653,2]
[327358492,1716016240440,-708.47,0.0001671,2]
[327358494,1716016240450,-708.47,0.00016711,2]
[327358496,1716016240460,-708.47,0.00016711,2]
[327358498,1716016240470,-708.47,0.00016711,2]
[327358500,1716016240480,-544.23,0.00016711,2]
[327358502,1716016240490,-544.23,0.00016711,2]
[327358504,1716016240500,-655.64,0.00016711,2]
[327358506,1716016240510,-655.64,0.00016711,2]
[327358508,1716016240519,-655.64,0.00016711,2]
[327358510,1716016240528,-151.0,0.00016712,2]
[327358512,1716016240537,-151.0,0.00016712,2]
[327358514,1716016240547,-500.0,0.00016712,2]
[327358516,1716016240556,-500.0,0.00016712,2]
[327358517,1716016240565,-500.0,0.00016712,2]
[327358519,1716016240575,-151.07936566,0.00016712,2]
[327358521,1716016240585,-559.31993501,0.00016712,2]
[327358523,1716016240594,-500.0,0.00016712,2]
[327358525,1716016240603,-500.0,0.00016712,2]
[327358527,1716016240612,-510.31,0.00016712,2]
[327358528,1716016240621,-214.8438112,0.00016712,2]
[327358529,1716016240631,-500.0,0.00016712,2]
[327358530,1716016240640,-500.0,0.00016712,2]
[327358531,1716016240649,-500.0,0.00016712,2]
[327358532,1716016240658,-500.0,0.00016712,2]
[327358533,1716016240668,-500.0,0.00016712,2]
[327358534,1716016240677,-500.0,0.00016712,2]
[327358535,1716016240687,-500.0,0.00016712,2]
[327358536,1716016240697,-270.53406,0.00016712,2]
[327358537,1716016240706,-363.69376436,0.00016712,2]
[327358538,1716016240715,-500.0,0.00016712,2]
[327358539,1716016240724,-500.0,0.00016712,2]
[327358540,1716016240734,-611.54,0.00016712,2]
[327358541,1716016240743,-169.073688,0.00016712,2]
[327358542,1716016240752,-169.073688,0.00016712,2]
[327358543,1716016240761,-169.073688,0.00016712,2]
[327358544,1716016240771,-169.073688,0.00016712,2]
[327358545,1716016240780,-500.0,0.00016712,2]
[327358546,1716016240789,-151.0,0.00016712,2]
[327358547,1716016240798,-500.0,0.00016712,2]
[327358548,1716016240807,-500.0,0.00016712,2]
[327358549,1716016240816,-151.0,0.00016712,2]
[327358550,1716016240825,-151.0,0.00016712,2]
[327358552,1716016240836,-244.007865,0.00016712,2]
[327358554,1716016240845,-244.007865,0.00016712,2]
[327358555,1716016240854,-244.007865,0.00016712,2]
[327358556,1716016240864,-244.007865,0.00016712,2]
[327358557,1716016240873,-500.0,0.00016712,2]
[327358558,1716016240882,-262.79045539,0.00016712,2]
[327358559,1716016240892,-500.0,0.00016712,2]
[327358560,1716016240901,-2956.29,0.00016712,2]
[327358561,1716016240910,-151.0,0.00016712,2]
[327358562,1716016240920,-151.0,0.00016712,2]
[327358563,1716016240929,-500.0,0.00016712,2]
[327358564,1716016240938,-151.0,0.00016712,2]
[327358565,1716016240949,-151.0,0.00016712,2]
[327358567,1716016240959,-263.36734765,0.00016712,2]
[327358570,1716016240974,-236.63265235,0.00016712,2]
[327358571,1716016240984,-500.0,0.00016712,2]
[327358573,1716016240993,-500.0,0.00016712,2]
[327358575,1716016241002,-500.0,0.00016712,2]
[327358576,1716016241011,-574.66929881,0.00016712,2]
[327358578,1716016241020,-500.0,0.00016712,2]
[327358580,1716016241030,-500.0,0.00016712,2]
[327358582,1716016241040,-223.188601,0.00016712,2]
[327358583,1716016241050,-223.188601,0.00016712,2]
[327358584,1716016241059,-223.188601,0.00016712,2]
[327358585,1716016241069,-223.188601,0.00016712,2]
[327358586,1716016241078,-229.200561,0.00016712,2]
[327358587,1716016241087,-229.200561,0.00016712,2]
[327358588,1716016241097,-500.0,0.00016712,2]
[327358589,1716016241107,-229.200561,0.00016712,2]
[327358590,1716016241116,-229.200561,0.00016712,2]
[327358591,1716016241126,-653.87,0.00016712,2]
[327358593,1716016241135,-4188.03,0.00016712,2]
[327358594,1716016241144,-5058.19,0.00016712,2]
[327358595,1716016241153,-151.0,0.00016712,2]
[327358596,1716016241162,-151.0,0.00016712,2]
[327358597,1716016241171,-2310.72,0.00016712,2]
[327358598,1716016241180,-418.43279794,0.00016712,2]
[327358599,1716016241189,-151.0,0.00016712,2]
[327358600,1716016241199,-151.0,0.00016712,2]
[327358601,1716016241208,-500.0,0.00016712,2]
[327358602,1716016241218,-151.0,0.00016712,2]
[327358603,1716016241227,-151.0,0.00016712,2]
[327358604,1716016241236,-448.2873785,0.00016712,2]
[327358605,1716016241245,-500.0,0.00016712,2]
[327358606,1716016241254,-500.0,0.00016712,2]
[327358607,1716016241264,-500.0,0.00016712,2]
[327358609,1716016241273,-500.0,0.00016712,2]
[327358610,1716016241287,-500.0,0.00016712,2]
[327358612,1716016241297,-5656.52,0.00016712,2]
[327358614,1716016241307,-500.0,0.00016712,2]
[327358615,1716016241317,-1112.732129,0.00016712,2]
[327358616,1716016241326,-1112.732129,0.00016712,2]
[327358617,1716016241336,-3480.51,0.00016712,2]
[327358618,1716016241345,-500.0,0.00016712,2]
[327358619,1716016241354,-500.0,0.00016712,2]
[327358620,1716016241366,-1112.732129,0.00016712,2]
[327358621,1716016241376,-1112.732129,0.00016712,2]
[327358622,1716016241385,-1221.707451,0.00016712,2]
[327358623,1716016241395,-24540.07,0.00016712,2]
[327358624,1716016241403,-1221.707451,0.00016712,2]
[327358625,1716016241412,-1221.707451,0.00016712,2]
[327358626,1716016241423,-1221.707451,0.00016712,2]
[327358628,1716016241538,-202.19377583,0.00016712,2]
[327358629,1716016241548,-500.0,0.00016712,2]
[327358630,1716016241558,-500.0,0.00016712,2]
[327358631,1716016241568,-179.58340243,0.00016712,2]
[327358632,1716016241578,-151.0,0.00016712,2]
[327358633,1716016241588,-151.0,0.00016712,2]
[327358634,1716016241597,-151.0,0.00016712,2]
[327358635,1716016241606,-163.021536,0.00016712,2]
[327358636,1716016241615,-585.22,0.00016712,2]
[327358637,1716016241625,-500.0,0.00016712,2]
[327358638,1716016241634,-1114.36,0.00016712,2]
[327358639,1716016241643,-539.838965,0.00016712,2]
[327358640,1716016241653,-539.838965,0.00016712,2]
[327358641,1716016241662,-500.0,0.00016712,2]
[327358642,1716016241671,-539.838965,0.00016712,2]
[327358643,1716016241681,-539.838965,0.00016712,2]
[327358644,1716016241691,-609.17484149,0.00016712,2]
[327358645,1716016241700,-500.0,0.00016712,2]
[327358646,1716016241710,-2724.917248,0.00016712,2]
[327358647,1716016241719,-2724.917248,0.00016712,2]
[327358648,1716016241729,-500.0,0.00016712,2]
[327358649,1716016241738,-2724.917248,0.00016712,2]
[327358650,1716016241747,-151.0,0.00016712,2]
[327358651,1716016241756,-2724.917248,0.00016712,2]
[327358652,1716016241766,-151.0,0.00016712,2]
[327358653,1716016241775,-500.0,0.00016712,2]
[327358654,1716016241785,-500.0,0.00016712,2]
[327358655,1716016241794,-500.0,0.00016712,2]
[327358656,1716016241804,-298.72607249,0.00016712,2]
[327358657,1716016241813,-713.21,0.00016712,2]
[327358658,1716016241822,-341.93134487,0.00016712,2]
[327358659,1716016241832,-514.62213684,0.00016712,2]
[327358660,1716016241841,-344.97460582,0.00016712,2]
[327358661,1716016241850,-302.99943181,0.00016749,2]
[327358662,1716016241859,-302.99943181,0.00016886,2]
[327358663,1716016241869,-323.5,0.00016903,2]
[327358664,1716016241878,-544.23,0.00016974,2]
[327358665,1716016241887,-151.0,0.00016975,2]
[327358666,1716016241896,-708.47,0.00016985,2]
[327358667,1716016241906,-708.47,0.00016985,2]
[327358668,1716016241915,-708.47,0.00016985,2]
[327358669,1716016241924,-544.23,0.00016985,2]
[327358670,1716016241934,-544.23,0.00016985,2]
[327358671,1716016241943,-544.23,0.00016985,2]
[327358672,1716016241953,-655.64,0.00016985,2]
[327358673,1716016241962,-655.64,0.00016985,2]
[327358674,1716016241972,-655.64,0.00016985,2]
[327358675,1716016241981,-151.0,0.00016986,2]
[327358676,1716016241990,-151.0,0.00016986,2]
[327358677,1716016242000,-602.11409,0.00016986,2]
[327358678,1716016242010,-500.0,0.00016986,2]
[327358679,1716016242019,-287.86965665,0.00016986,2]
[327358680,1716016242028,-500.0,0.00016986,2]
[327358681,1716016242038,-500.0,0.00016986,2]
[327358682,1716016242047,-500.0,0.00016986,2]
[327358683,1716016242056,-500.0,0.00016986,2]
[327358684,1716016242066,-500.0,0.00016986,2]
[327358685,1716016242075,-421.56973851,0.00016986,2]
[327358686,1716016242085,-500.0,0.00016986,2]
[327358687,1716016242094,-500.0,0.00016986,2]
[327358688,1716016242104,-500.0,0.00016986,2]
[327358689,1716016242115,-500.0,0.00016986,2]
[327358690,1716016242125,-579.88262495,0.00016986,2]
[327358691,1716016242135,-169.073688,0.00016986,2]
[327358692,1716016242145,-169.073688,0.00016986,2]
[327358693,1716016242155,-169.073688,0.00016986,2]
[327358694,1716016242163,-169.073688,0.00016986,2]
[327358695,1716016242173,-252.12,0.00016986,2]
[327358696,1716016242183,-500.0,0.00016986,2]
[327358697,1716016242193,-221.2409615,0.00016986,2]
[327358698,1716016242203,-156.430458,0.00016986,2]
[327358699,1716016242212,-244.007865,0.00016986,2]
[327358700,1716016242222,-244.007865,0.00016986,2]
[327358701,1716016242232,-244.007865,0.00016986,2]
[327358702,1716016242241,-244.007865,0.00016986,2]
[327358703,1716016242251,-244.007865,0.00016986,2]
[327358704,1716016242260,-244.007865,0.00016986,2]
[327358705,1716016242271,-215.81218195,0.00016986,2]
[327358706,1716016242284,-500.0,0.00016986,2]
[327358707,1716016242294,-2956.29,0.00016986,2]
[327358708,1716016242303,-151.0,0.00016986,2]
[327358709,1716016242313,-151.0,0.00016986,2]
[327358710,1716016242322,-151.0,0.00016986,2]
[327358711,1716016242332,-500.0,0.00016986,2]
[327358712,1716016242343,-151.0,0.00016986,2]
[327358713,1716016242352,-151.0,0.00016986,2]
[327358714,1716016242361,-151.0,0.00016986,2]
[327358715,1716016242371,-500.0,0.00016986,2]
[327358716,1716016242380,-500.0,0.00016986,2]
[327358717,1716016242389,-500.0,0.00016986,2]